fUST/lending_fUST_20250501
["ID","MTS","AMOUNT","RATE_DAILY","PERIOD"]
[359551465,1746111032244,-13248.7129653,0.00025727,2]
[359551466,1746111032254,-195.849198,0.00025767,2]
[359551467,1746111032264,-184.864857,0.00026762,2]
[359551468,1746111032274,-2344.14835824,0.000269,16]
[359551469,1746111032284,-920.4110342,0.00026984,2]
[359551470,1746111032294,-313.5174939,0.00027,3]
[359551472,1746111032304,-313.5174939,0.00027,3]
[359551473,1746111032314,-12595.7684382,0.00027081,2]
[359551475,1746111032325,-160.0,0.00027081,2]
[359551477,1746111032335,-421.4777418,0.00027081,2]
[359551479,1746111032346,-2369.69,0.000271,2]
[359551481,1746111032356,-2344.14835809,0.00027383,17]
[359551483,1746111032366,-927.092643,0.00027397,2]
[359551485,1746111032379,-420.0,0.00027848,2]
[359551487,1746111032389,-420.0,0.00027848,2]
[359551488,1746111032399,-2344.14835809,0.00027866,17]
[359551489,1746111032410,-250.0,0.00027906,2]
[359551490,1746111032420,-223.0315306,0.00028127,2]
[359551491,1746111032430,-2344.14835809,0.00028348,18]
[359551492,1746111032441,-2344.14835809,0.00028831,19]
[359551493,1746111032451,-920.41103413,0.00028918,2]
[359551494,1746111032461,-462.63058664,0.00029018,2]
[359551495,1746111032471,-2344.14835809,0.00029314,20]
[359551496,1746111032481,-2344.14835809,0.00029797,21]
[359551497,1746111032491,-5618.10258556,0.00029859,2]
[359551498,1746111032509,-24490.95662455,0.00029859,2]
[359551499,1746111032519,-5567.14280258,0.00029928,2]
[359551500,1746111032530,-182.80071842,0.00029987,24]
[359551501,1746111032540,-250.0,0.0003,7]
[359551502,1746111032550,-316.07907501,0.0003,2]
[359551503,1746111032560,-250.0,0.0003,30]
[359551504,1746111032571,-235.0,0.0003,2]
[359551505,1746111032581,-2927.71331964,0.00030016,2]
[359551506,1746111032595,-14188.97161509,0.00030016,2]
[359551507,1746111032615,-414.1104975,0.00030016,2]
[359551529,1746111038374,-841.10298755,0.00026985,2]
[359551530,1746111038386,-100958.89814177,0.00030016,2]
[359551532,1746111038397,-23165.3869732,0.00030016,2]
[359551533,1746111038406,-242673.67840195,0.00030026,2]
[359551534,1746111038423,-1818.20819582,0.00030026,2]
[359551547,1746111040716,-1524.6970442,0.00030026,2]
[359551548,1746111040747,-11246.3353615,0.00030026,2]
[359551549,1746111040758,-4315.0,0.00030026,2]
[359551635,1746111043517,-1438.17260358,0.00030026,2]
[359551668,1746111046568,-4822.2,0.00030026,2]
[359551669,1746111046580,-7287.69041086,0.00030026,2]
[359551670,1746111046592,-500.0,0.00030026,2]
[359551697,1746111766098,-195.849198,0.00024466,2]
[359551698,1746111766122,-177.3992658,0.00024466,2]
[359551699,1746111766146,-861.9914497,0.00024623,2]
[359551700,1746111766169,-150.0,0.000247,2]
[359551701,1746111766193,-841.10298755,0.00025105,2]
[359551702,1746111766218,-3597.34407454,0.00025105,2]
[359551703,1746111766241,-220.93177949,0.00025205,2]
[359551704,1746111766263,-286.185767,0.00025319,2]
[359551705,1746111766287,-690.30827565,0.00025621,2]
[359551706,1746111766311,-300.0,0.00025719,2]
[359551707,1746111766334,-300.0,0.0002572,2]
[359551708,1746111766358,-5333.88720227,0.0002572,2]
[359551913,1746112071670,220.0,0.00025,120]
[359551967,1746112232531,-496.34925645,0.0002362,2]
[359551968,1746112232545,-3362.86128003,0.00024366,2]
[359551969,1746112232555,-300.0,0.00024563,2]
[359551970,1746112232566,-1200.0,0.00024563,2]
[359551971,1746112232576,-300.0,0.00024563,2]
[359551972,1746112232586,-24900.0,0.00024564,2]
[359551973,1746112232596,-841.10298755,0.0002505,2]
[359551974,1746112232606,-595.06667363,0.00025407,2]
[359551975,1746112232616,-405.61957752,0.00025715,2]
[359551976,1746112232627,-513.86001441,0.00025715,2]
[359551977,1746112232637,-473.82462763,0.00025715,2]
[359551978,1746112232647,-500.0,0.00025716,2]
[359551979,1746112232657,-500.0,0.00025716,2]
[359551980,1746112232669,-500.0,0.00025716,2]
[359551981,1746112232680,-500.0,0.00025716,2]
[359551982,1746112232690,-500.0,0.00025716,2]
[359551983,1746112232700,-500.0,0.00025716,2]
[359551984,1746112232711,-500.0,0.00025716,2]
[359551985,1746112232721,-500.0,0.00025716,2]
[359551986,1746112232731,-500.0,0.00025716,2]
[359551987,1746112232741,-500.0,0.00025716,2]
[359551988,1746112232751,-500.0,0.00025716,2]
[359551989,1746112232760,-500.0,0.00025716,2]
[359551990,1746112232771,-500.0,0.00025716,2]
[359551991,1746112232781,-500.0,0.00025716,2]
[359551992,1746112232791,-624.22921305,0.00025716,2]
[359551993,1746112232802,-500.0,0.00025716,2]
[359551994,1746112232812,-500.0,0.00025716,2]
[359551995,1746112232823,-500.0,0.00025716,2]
[359551996,1746112232833,-500.0,0.00025716,2]
[359551997,1746112232844,-500.0,0.00025716,2]
[359551998,1746112232854,-500.0,0.00025716,2]
[359551999,1746112232865,-500.0,0.00025716,2]
[359552000,1746112232875,-500.0,0.00025716,2]
[359552001,1746112232886,-500.0,0.00025716,2]
[359552002,1746112232897,-300.0,0.00025716,2]
[359552003,1746112232907,-500.0,0.00025716,2]
[359552004,1746112232921,-8763.50273065,0.00025717,2]
[359552005,1746112233208,-9493.29355243,0.00025717,2]
[359552006,1746112233219,-157.45,0.00025718,2]
[359552007,1746112233230,-421.4777418,0.00025718,2]
[359552008,1746112233240,-9590.70451658,0.0002572,2]
[359552009,1746112233251,-160.0,0.0002572,2]
[359552010,1746112233261,-182.07995741,0.0002572,2]
[359552011,1746112233271,-12031.26276194,0.0002572,2]
[359552012,1746112233284,-9091.90003579,0.0002572,2]
[359552013,1746112233294,-11442.3297067,0.0002578,2]
[359552014,1746112233304,-2151.07164751,0.0002578,2]
[359552015,1746112233315,-500.0,0.000258,2]
[359552016,1746112233325,-500.0,0.000258,2]
[359552017,1746112233336,-365.20452727,0.000258,2]
[359552018,1746112233346,-501.44772107,0.000258,2]
[359552019,1746112233357,-500.0,0.000258,2]
[359552020,1746112233367,-500.0,0.000258,2]
[359552021,1746112233378,-500.0,0.000258,2]
[359552022,1746112233388,-500.0,0.000258,2]
[359552023,1746112233398,-500.0,0.000258,2]
[359552024,1746112233408,-500.0,0.000258,2]
[359552025,1746112233422,-500.0,0.000258,2]
[359552026,1746112233432,-500.0,0.000258,2]
[359552027,1746112233443,-300.0,0.000258,2]
[359552028,1746112233453,-500.0,0.000258,2]
[359552029,1746112233464,-301.518159,0.000258,2]
[359552030,1746112233474,-500.0,0.000258,2]
[359552031,1746112233484,-500.0,0.000258,2]
[359552032,1746112233494,-500.0,0.000258,2]
[359552033,1746112233504,-204.22186963,0.000258,2]
[359552034,1746112233514,-500.0,0.000258,2]
[359552035,1746112233525,-500.0,0.000258,2]
[359552036,1746112233535,-170.44753878,0.000258,2]
[359552037,1746112233546,-500.0,0.000258,2]
[359552038,1746112233559,-501.68673466,0.000258,2]
[359552039,1746112233570,-500.0,0.000258,2]
[359552040,1746112233580,-510.93041603,0.000258,2]
[359552041,1746112233592,-500.0,0.000258,2]
[359552042,1746112233602,-1907.06454848,0.000259,14]
[359552043,1746112233612,-1907.06454835,0.00026417,15]
[359552044,1746112233625,-420.0,0.00026622,2]
[359552045,1746112233638,-420.0,0.00026622,2]
[359552046,1746112233648,-1539.0,0.00026743,2]
[359552047,1746112233659,-1000.0,0.00026885,2]
[359552048,1746112233672,-1907.06454835,0.00026934,16]
[359552049,1746112233682,-313.5174939,0.00027,3]
[359552050,1746112233693,-888.890421,0.00027397,2]
[359552051,1746112233704,-600.0,0.00027444,5]
[359552052,1746112233714,-1907.06454835,0.00027452,17]
[359552053,1746112233724,-1907.06454835,0.00027969,18]
[359552054,1746112233735,-269.5770414,0.0002834,2]
[359552055,1746112233745,-1907.06454835,0.00028486,19]
[359552056,1746112233755,-496.34925645,0.0002862,2]
[359552057,1746112233765,-587.0,0.00028853,2]
[359552058,1746112233775,-373.0,0.00028853,2]
[359552059,1746112233786,-1907.06454835,0.00029003,20]
[359552060,1746112233796,-11442.3297067,0.0002904,2]
[359552061,1746112233807,-2151.07164751,0.0002904,2]
[359552062,1746112233818,-900.0,0.00029088,5]
[359552063,1746112233829,-1907.06454835,0.00029521,21]
[359552064,1746112233840,-7328.4418765,0.0003,30]
[359552065,1746112233850,-257.90954034,0.0003,2]
[359552066,1746112233861,-500.48,0.0003,7]
[359552067,1746112234107,-11442.3297067,0.00030006,2]
[359552068,1746112234124,-2151.07164751,0.00030006,2]
[359552069,1746112234136,-151.0,0.00030026,2]
[359552070,1746112234147,-5261.18933539,0.00030035,2]
[359552071,1746112234157,-1907.06454835,0.00030038,22]
[359552072,1746112234169,-151.0,0.000301,15]
[359552073,1746112234179,-22884.6594134,0.00030116,2]
[359552074,1746112234190,-4302.14329502,0.00030116,2]
[359552075,1746112234200,-11442.3297067,0.00030126,2]
[359552076,1746112234210,-2151.07164751,0.00030126,2]
[359552077,1746112234220,-102980.96736,0.00030126,2]
[359552078,1746112234231,-19359.6448276,0.00030126,2]
[359552079,1746112234242,-160.0,0.00030135,10]
[359552080,1746112234252,-43843.39475885,0.00030136,2]
[359552081,1746112234262,-3977.53679054,0.00030136,3]
[359552082,1746112234272,-151.0,0.00030136,7]
[359552083,1746112234282,-201.194555,0.00030136,7]
[359552084,1746112234292,-155.458248,0.00030136,7]
[359552085,1746112234302,-155.458248,0.00030136,7]
[359552086,1746112234312,-264.4308,0.00030136,7]
[359552087,1746112234322,-264.4308,0.00030136,7]
[359552088,1746112234332,-264.4308,0.00030136,7]
[359552089,1746112234342,-264.4308,0.00030136,7]
[359552090,1746112234352,-289.752673,0.00030136,7]
[359552091,1746112234363,-289.752673,0.00030136,7]
[359552092,1746112234373,-151.0,0.00030136,7]
[359552093,1746112234383,-151.0,0.00030136,7]
[359552094,1746112234393,-151.0,0.00030136,7]
[359552095,1746112234404,-151.0,0.00030136,7]
[359552096,1746112234414,-400.0,0.00030136,5]
[359552097,1746112234424,-151.0,0.00030136,7]
[359552098,1746112234434,-501.47442538,0.00030136,5]
[359552099,1746112234444,-400.0,0.00030136,5]
[359552100,1746112234454,-400.0,0.00030136,5]
[359552101,1746112234464,-400.0,0.00030136,5]
[359552102,1746112234475,-529.81655266,0.00030136,5]
[359552103,1746112234485,-400.0,0.00030136,5]
[359552104,1746112234495,-839.71712,0.00030136,7]
[359552105,1746112234504,-839.71712,0.00030136,7]
[359552106,1746112234514,-839.71712,0.00030136,7]
[359552107,1746112234524,-839.71712,0.00030136,7]
[359552108,1746112234534,-151.0,0.00030136,7]
[359552109,1746112234547,-151.0,0.00030136,7]
[359552110,1746112234559,-400.0,0.00030136,5]
[359552111,1746112234570,-400.0,0.00030136,5]
[359552112,1746112234580,-400.0,0.00030136,5]
[359552113,1746112234591,-400.0,0.00030136,5]
[359552114,1746112234601,-400.0,0.00030136,5]
[359552115,1746112234612,-151.0,0.00030136,7]
[359552116,1746112234625,-161.795106,0.00030136,7]
[359552117,1746112234635,-202.00795282,0.00030136,5]
[359552118,1746112234645,-151.0,0.00030136,7]
[359552119,1746112234655,-152.574943,0.00030136,7]
[359552120,1746112234666,-614.56,0.00030136,5]
[359552121,1746112234676,-400.0,0.00030136,5]
[359552122,1746112234686,-400.0,0.00030136,5]
[359552123,1746112234696,-414.26,0.00030136,5]
[359552124,1746112234707,-2455.42,0.00030136,5]
[359552125,1746112234717,-151.0,0.00030136,7]
[359552126,1746112234731,-151.0,0.00030136,7]
[359552127,1746112234741,-151.0,0.00030136,7]
[359552128,1746112234751,-400.0,0.00030136,5]
[359552129,1746112234761,-400.0,0.00030136,5]
[359552130,1746112234771,-151.0,0.00030136,7]
[359552131,1746112234782,-151.0,0.00030136,7]
[359552132,1746112234792,-400.0,0.00030136,2]
[359552133,1746112234802,-400.0,0.00030136,5]
[359552134,1746112234812,-151.0,0.00030136,7]
[359552135,1746112234823,-151.0,0.00030136,7]
[359552136,1746112234833,-400.0,0.00030136,5]
[359552137,1746112234844,-400.0,0.00030136,5]
[359552138,1746112234854,-151.0,0.00030136,7]
[359552139,1746112234864,-400.0,0.00030136,5]
[359552140,1746112234874,-151.0,0.00030136,7]
[359552141,1746112234884,-151.0,0.00030136,7]
[359552142,1746112234894,-151.0,0.00030136,7]
[359552143,1746112234905,-400.0,0.00030136,5]
[359552144,1746112234917,-151.0,0.00030136,7]
[359552145,1746112234928,-400.0,0.00030136,5]
[359552146,1746112234938,-151.0,0.00030136,7]
[359552147,1746112234949,-246.45577,0.00030136,7]
[359552148,1746112234959,-400.0,0.00030136,5]
[359552149,1746112234969,-400.0,0.00030136,5]
[359552150,1746112234980,-400.0,0.00030136,5]
[359552151,1746112234990,-400.0,0.00030136,5]
[359552152,1746112235000,-207.690292,0.00030136,7]
[359552153,1746112235011,-425.9,0.00030136,5]
[359552154,1746112235021,-400.0,0.00030136,5]
[359552155,1746112235030,-207.690292,0.00030136,7]
[359552156,1746112235040,-400.0,0.00030136,5]
[359552157,1746112235050,-400.0,0.00030136,5]
[359552158,1746112235060,-400.0,0.00030136,5]
[359552159,1746112235070,-400.0,0.00030136,5]
[359552160,1746112235080,-400.0,0.00030136,5]
[359552161,1746112235090,-400.0,0.00030136,5]
[359552162,1746112235100,-400.0,0.00030136,5]
[359552163,1746112235110,-400.0,0.00030136,5]
[359552164,1746112235120,-400.0,0.00030136,5]
[359552165,1746112235130,-400.0,0.00030136,5]
[359552166,1746112235140,-400.0,0.00030136,5]
[359552167,1746112235149,-400.0,0.00030136,5]
[359552168,1746112235160,-400.0,0.00030136,5]
[359552169,1746112235172,-306.98417797,0.00030136,5]
[359552170,1746112235182,-505.4315929,0.00030136,5]
[359552171,1746112235194,-400.0,0.00030136,5]
[359552172,1746112235204,-400.0,0.00030136,5]
[359552173,1746112235214,-400.0,0.00030136,5]
[359552174,1746112235224,-400.0,0.00030136,5]
[359552175,1746112235234,-404.0545705,0.00030136,5]
[359552176,1746112235244,-400.0,0.00030136,5]
[359552177,1746112235254,-400.0,0.00030136,5]
[359552178,1746112235263,-400.0,0.00030136,5]
[359552179,1746112235273,-151.0,0.00030136,7]
[359552180,1746112235283,-151.0,0.00030136,7]
[359552181,1746112235293,-151.0,0.00030136,7]
[359552182,1746112235303,-400.0,0.00030136,5]
[359552183,1746112235313,-400.0,0.00030136,5]
[359552184,1746112235323,-400.0,0.00030136,5]
[359552185,1746112235334,-400.0,0.00030136,5]
[359552186,1746112235344,-400.0,0.00030136,5]
[359552187,1746112235354,-151.0,0.00030136,7]
[359552188,1746112235364,-504.41927017,0.00030136,5]
[359552189,1746112235374,-251.77019911,0.00030136,5]
[359552190,1746112235384,-400.0,0.00030136,5]
[359552191,1746112235394,-151.0,0.00030136,7]
[359552192,1746112235404,-347.86857434,0.00030136,5]
[359552193,1746112235414,-151.0,0.00030136,7]
[359552194,1746112235425,-151.0,0.00030136,7]
[359552195,1746112235435,-151.0,0.00030136,7]
[359552196,1746112235444,-400.0,0.00030136,5]
[359552197,1746112235454,-253.220473,0.00030136,7]
[359552198,1746112235464,-253.220473,0.00030136,7]
[359552199,1746112235474,-400.0,0.00030136,5]
[359552200,1746112235483,-253.220473,0.00030136,7]
[359552201,1746112235493,-253.220473,0.00030136,7]
[359552202,1746112235503,-820.33,0.00030136,5]
[359552203,1746112235513,-400.0,0.00030136,5]
[359552204,1746112235522,-151.0,0.00030136,7]
[359552205,1746112235532,-490.54,0.00030136,5]
[359552206,1746112235543,-151.0,0.00030136,7]
[359552207,1746112235556,-151.0,0.00030136,7]
[359552208,1746112235566,-5080.416419,0.00030136,2]
[359552209,1746112235576,-5080.416419,0.00030136,2]
[359552210,1746112235587,-5080.416419,0.00030136,2]
[359552211,1746112235596,-240.959138,0.00030136,7]
[359552212,1746112235606,-400.0,0.00030136,5]
[359552213,1746112235616,-400.0,0.00030136,5]
[359552214,1746112235630,-5080.416419,0.00030136,2]
[359552215,1746112235642,-899.2760301,0.00030136,2]
[359552233,1746112238699,-151.0,0.00030035,2]
[359552234,1746112238710,-197.28,0.00030136,2]
[359552235,1746112238750,-3983.8603889,0.00030136,2]
[359552236,1746112238761,-5080.416419,0.00030136,2]
[359552237,1746112238771,-400.0,0.00030136,5]
[359552239,1746112238781,-400.0,0.00030136,5]
[359552240,1746112238791,-400.0,0.00030136,2]
[359552241,1746112238802,-400.0,0.00030136,5]
[359552242,1746112238812,-400.0,0.00030136,5]
[359552243,1746112238822,-400.0,0.00030136,5]
[359552244,1746112238832,-418.59343452,0.00030136,5]
[359552245,1746112238842,-503.68,0.00030136,5]
[359552246,1746112238853,-253.475718,0.00030136,7]
[359552247,1746112238863,-253.475718,0.00030136,7]
[359552249,1746112238872,-253.475718,0.00030136,7]
[359552251,1746112238882,-400.0,0.00030136,5]
[359552253,1746112238892,-253.475718,0.00030136,7]
[359552255,1746112238902,-253.475718,0.00030136,7]
[359552257,1746112238912,-253.475718,0.00030136,7]
[359552259,1746112238924,-1066.11,0.00030136,5]
[359552261,1746112238934,-400.0,0.00030136,5]
[359552263,1746112238945,-400.0,0.00030136,5]
[359552265,1746112238955,-151.0,0.00030136,7]
[359552267,1746112238965,-161.661545,0.00030136,7]
[359552269,1746112238975,-161.661545,0.00030136,7]
[359552271,1746112238986,-161.661545,0.00030136,7]
[359552273,1746112238995,-305.30119288,0.00030136,5]
[359552275,1746112239005,-84.9295194,0.00030136,7]
[359552277,1746112239019,-76.7320256,0.00030136,7]
[359552280,1746112239029,-161.661545,0.00030136,7]
[359552281,1746112239039,-400.0,0.00030136,5]
[359552283,1746112239048,-161.661545,0.00030136,7]
[359552285,1746112239058,-624.0,0.00030136,5]
[359552286,1746112239067,-400.0,0.00030136,5]
[359552288,1746112239077,-206.8764296,0.00030136,5]
[359552290,1746112239087,-4820.68,0.00030136,2]
[359552292,1746112239096,-514.82670128,0.00030136,5]
[359552294,1746112239106,-400.0,0.00030136,5]
[359552296,1746112239115,-500.0,0.00030136,5]
[359552298,1746112239125,-500.0,0.00030136,5]
[359552300,1746112239135,-500.0,0.00030136,5]
[359552302,1746112239145,-500.0,0.00030136,5]
[359552304,1746112239154,-507.82858306,0.00030136,5]
[359552306,1746112239164,-400.0,0.00030136,5]
[359552309,1746112239180,-400.0,0.00030136,5]
[359552311,1746112239190,-318.46557483,0.00030136,5]
[359552313,1746112239201,-400.0,0.00030136,5]
[359552315,1746112239212,-400.0,0.00030136,5]
[359552317,1746112239223,-400.0,0.00030136,5]
[359552319,1746112239233,-400.0,0.00030136,5]
[359552321,1746112239243,-400.0,0.00030136,5]
[359552323,1746112239253,-400.0,0.00030136,2]
[359552325,1746112239263,-400.0,0.00030136,5]
[359552327,1746112239272,-400.0,0.00030136,5]
[359552329,1746112239282,-400.0,0.00030136,5]
[359552331,1746112239292,-400.0,0.00030136,5]
[359552333,1746112239301,-400.0,0.00030136,5]
[359552335,1746112239311,-400.0,0.00030136,5]
[359552337,1746112239321,-400.0,0.00030136,5]
[359552339,1746112239330,-400.0,0.00030136,5]
[359552341,1746112239340,-400.0,0.00030136,5]
[359552343,1746112239350,-483.4,0.00030136,5]
[359552345,1746112239360,-406.64351905,0.00030136,5]
[359552346,1746112239370,-151.0,0.00030136,7]
[359552347,1746112239380,-151.0,0.00030136,7]
[359552348,1746112239389,-406.10020127,0.00030136,5]
[359552349,1746112239399,-151.0,0.00030136,7]
[359552350,1746112239411,-549.38,0.00030136,5]
[359552351,1746112239423,-400.0,0.00030136,5]
[359552352,1746112239433,-403.10949804,0.00030136,5]
[359552353,1746112239443,-400.0,0.00030136,5]
[359552354,1746112239453,-400.0,0.00030136,5]
[359552355,1746112239463,-400.0,0.00030136,5]
[359552356,1746112239473,-400.0,0.00030136,5]
[359552357,1746112239483,-778.8,0.00030136,5]
[359552358,1746112239493,-400.0,0.00030136,5]
[359552359,1746112239503,-400.0,0.00030136,5]
[359552360,1746112239512,-400.0,0.00030136,5]
[359552361,1746112239522,-651.85,0.00030136,5]
[359552362,1746112239532,-402.64282649,0.00030136,5]
[359552363,1746112239542,-400.0,0.00030136,5]
[359552364,1746112239552,-1162.64,0.00030136,5]
[359552365,1746112239565,-532.21,0.00030136,5]
[359552366,1746112239575,-400.0,0.00030136,5]
[359552367,1746112239584,-518.26811235,0.00030136,5]
[359552368,1746112239594,-223.97278716,0.00030136,5]
[359552369,1746112239605,-400.0,0.00030136,5]
[359552370,1746112239615,-400.0,0.00030136,5]
[359552371,1746112239627,-1377.47,0.00030136,5]
[359552372,1746112239638,-400.0,0.00030136,5]
[359552373,1746112239649,-400.0,0.00030136,5]
[359552374,1746112239658,-400.0,0.00030136,5]
[359552375,1746112239671,-400.0,0.00030136,5]
[359552376,1746112239685,-400.0,0.00030136,5]
[359552377,1746112239696,-400.0,0.00030136,5]
[359552378,1746112239706,-400.0,0.00030136,5]
[359552379,1746112239717,-400.0,0.00030136,5]
[359552380,1746112239727,-400.0,0.00030136,5]
[359552381,1746112239737,-400.0,0.00030136,5]
[359552382,1746112239747,-505.28538744,0.00030136,5]
[359552383,1746112239757,-400.0,0.00030136,5]
[359552384,1746112239767,-400.0,0.00030136,5]
[359552385,1746112239777,-400.0,0.00030136,5]
[359552386,1746112239787,-503.30620545,0.00030136,5]
[359552387,1746112239798,-509.69664392,0.00030136,5]
[359552388,1746112239808,-400.0,0.00030136,5]
[359552389,1746112239818,-151.0,0.00030136,7]
[359552390,1746112239828,-151.0,0.00030136,7]
[359552391,1746112239838,-313.34885484,0.00030136,5]
[359552393,1746112239849,-151.0,0.00030136,7]
[359552395,1746112239859,-400.0,0.00030136,5]
[359552396,1746112239869,-400.0,0.00030136,5]
[359552397,1746112239879,-400.0,0.00030136,5]
[359552398,1746112239889,-400.0,0.00030136,5]
[359552399,1746112239900,-510.05265774,0.00030136,5]
[359552400,1746112239910,-151.0,0.00030136,7]
[359552401,1746112239920,-151.0,0.00030136,7]
[359552402,1746112239930,-151.0,0.00030136,7]
[359552403,1746112239940,-151.0,0.00030136,7]
[359552405,1746112239950,-151.0,0.00030136,7]
[359552406,1746112239960,-151.0,0.00030136,7]
[359552407,1746112239970,-400.0,0.00030136,5]
[359552409,1746112239980,-400.0,0.00030136,5]
[359552410,1746112239990,-151.0,0.00030136,7]
[359552411,1746112240000,-1000.0,0.00030136,5]
[359552412,1746112240010,-151.0,0.00030136,7]
[359552413,1746112240020,-151.0,0.00030136,7]
[359552414,1746112240031,-1876.91,0.00030136,5]
[359552415,1746112240041,-400.0,0.00030136,5]
[359552416,1746112240051,-151.0,0.00030136,7]
[359552417,1746112240061,-151.0,0.00030136,7]
[359552418,1746112240071,-400.0,0.00030136,5]
[359552419,1746112240081,-151.0,0.00030136,7]
[359552420,1746112240091,-402.29467556,0.00030136,5]
[359552421,1746112240101,-822.11,0.00030136,5]
[359552422,1746112240111,-400.0,0.00030136,5]
[359552423,1746112240120,-400.0,0.00030136,5]
[359552431,1746112240367,-244.21471632,0.00030136,5]
[359552434,1746112240380,-400.0,0.00030136,5]
[359552436,1746112240390,-400.0,0.00030136,5]
[359552438,1746112240401,-405.72808973,0.00030136,5]
[359552440,1746112240412,-400.0,0.00030136,5]
[359552442,1746112240425,-510.3831888,0.00030136,5]
[359552444,1746112240435,-400.0,0.00030136,5]
[359552445,1746112240446,-262.60317213,0.00030136,5]
[359552446,1746112240456,-400.0,0.00030136,5]
[359552447,1746112240466,-889.81,0.00030136,5]
[359552448,1746112240476,-184.3273059,0.00030136,5]
[359552449,1746112240486,-400.0,0.00030136,5]
[359552450,1746112240497,-400.0,0.00030136,5]
[359552451,1746112240507,-400.0,0.00030136,5]
[359552452,1746112240517,-400.0,0.00030136,5]
[359552453,1746112240526,-400.0,0.00030136,5]
[359552454,1746112240536,-642.98,0.00030136,5]
[359552455,1746112240550,-400.0,0.00030136,5]
[359552456,1746112240560,-400.0,0.00030136,5]
[359552457,1746112240570,-400.0,0.00030136,5]
[359552458,1746112240581,-400.0,0.00030136,5]
[359552460,1746112240593,-400.0,0.00030136,5]
[359552462,1746112240602,-400.0,0.00030136,5]
[359552464,1746112240612,-400.0,0.00030136,5]
[359552465,1746112240622,-400.0,0.00030136,5]
[359552467,1746112240633,-534.2797728,0.00030136,5]
[359552469,1746112240642,-402.86811598,0.00030136,5]
[359552471,1746112240652,-400.0,0.00030136,5]
[359552473,1746112240662,-400.0,0.00030136,5]
[359552475,1746112240678,-400.0,0.00030136,5]
[359552476,1746112240689,-400.0,0.00030136,5]
[359552477,1746112240701,-400.0,0.00030136,5]
[359552478,1746112240712,-1200.3,0.00030136,5]
[359552479,1746112240723,-500.0,0.00030136,5]
[359552480,1746112240733,-400.0,0.00030136,5]
[359552481,1746112240743,-400.0,0.00030136,5]
[359552482,1746112240754,-400.0,0.00030136,5]
[359552483,1746112240764,-418.5319133,0.00030136,5]
[359552484,1746112240774,-567.73,0.00030136,5]
[359552485,1746112240784,-400.0,0.00030136,5]
[359552486,1746112240794,-400.0,0.00030136,5]
[359552487,1746112240805,-288.54923115,0.00030136,5]
[359552488,1746112240815,-400.0,0.00030136,5]
[359552489,1746112240824,-489.08307338,0.00030136,5]
[359552490,1746112240834,-50.84252667,0.00030136,5]
[359552519,1746112243909,-349.15747333,0.00030136,5]
[359552520,1746112243922,-306.66251692,0.00030136,5]
[359552521,1746112243933,-400.0,0.00030136,5]
[359552522,1746112243942,-400.0,0.00030136,5]
[359552523,1746112243952,-504.20975861,0.00030136,5]
[359552524,1746112243962,-400.0,0.00030136,5]
[359552525,1746112243972,-539.02,0.00030136,5]
[359552526,1746112243982,-400.0,0.00030136,5]
[359552527,1746112243991,-400.0,0.00030136,5]